Workbook

Sheet Volume
B2: N4 Lifeskills - Volume Created by Mr.Lafferty@mathsrevision.com
B8: ="Q1. Fill in the missing words ( be careful with your spelling )" -> Q1. Fill in the missing words ( be careful with your spelling )
AZ10: length
AZ11: breadth
AZ12: height
C16: (b) Fill in the missing letters in the formula.
F18: V | G18: = | I18: x | K18: x | AZ18: l
AZ19: b
AZ20: h
B23: ="Q2. Find the volume and total surface area of the cuboid." -> Q2. Find the volume and total surface area of the cuboid.
Y24: =ROUND(RAND()*(4-2)+2,0) -> 3 | AA24: cm
AN25: =ROUND(RAND()*(6-3)+3,0) -> 4 | AP25: cm | AZ25: =2*(AG26*Y24)+2*(AG26*AN25)+2*(AN25*Y24) -> 150
O26: Volume = | W26: cm3 | AG26: =Y24+ROUND(RAND()*(8-5)+5,0) -> 9 | AH26: cm | AZ26: =Y24*AG26*AN25 -> 108
B30: ="Q3. Find the volume of the cuboid." -> Q3. Find the volume of the cuboid.
AB31: =ROUND(RAND()*(10-5)+5,0) -> 10 | AD31: m
AG32: =ROUND(RAND()*(10-5)+5,0) -> 9 | AH32: m
AZ33: =2*(AG32*AB31)+2*(AG32*AH35)+2*(AB31*AH35) -> 446
O34: Volume = | W34: m3 | AZ34: =AH35*AB31*AG32 -> 630
AH35: =ROUND(RAND()*(10-5)+5,0) -> 7 | AI35: m
B40: ="Q4. Find the volume of the cube." -> Q4. Find the volume of the cube.
AZ42: =6*(AF44*AF44) -> 486
O43: Volume = | W43: m3 | AZ43: =AF44*AF44*AF44 -> 729
AF44: =ROUND(RAND()*(10-5)+5,0) -> 9 | AG44: m
AZ46: =ROUND((RAND()*(20-7)+7),0)*12 -> 132 | BB46: =CONCATENATE(AZ46,"m") -> 132m
B47: ="Q5. Find the volume of the composite shape " -> Q5. Find the volume of the composite shape | AZ47: =ROUND(AZ46/4,0) -> 33 | BA47: =AZ46-AZ47 -> 99 | BB47: =CONCATENATE(AZ47,"m") -> 33m | BC47: =CONCATENATE(BA47,"m") -> 99m
D48: which is made up of a cuboid and cube. | Y48: =BB48 -> 66m | AZ48: =BA47*2/3 -> 66 | BB48: 66m
AZ49: =AZ48/2 -> 33 | BB49: 33m
P50: Volume = | W50: m3 | AN50: =BB47 -> 33m | AZ50: =(AZ46*AZ47*AZ48)+(AZ49*AZ49*AZ49) -> 323433
Z51: =BB49 -> 33m
AC52: =BB46 -> 132m
B55: ="Q6. How much water in litres is in the rectangular tank." -> Q6. How much water in litres is in the rectangular tank.
Z57: =ROUND(RAND()*(5-3)+3,0) -> 4 | AA57: m | AK57: =ROUND(Z57*1.5,0) -> 6 | AL57: m
P58: Volume = | W58: Litres | AZ58: =Z57*Z59*AE60*1000000/1000 -> 80000
Z59: =ROUND(RAND()*(2-1)+1,0) -> 2 | AA59: m
AE60: =ROUND((RAND()*(10-7)+7),0) -> 10 | AG60: m
AZ63: =ROUND(RAND()*(4-2)+2,0) -> 2 | BA63: =CONCATENATE(AZ63,"cm") -> 2cm
B64: ="Q7. Find the breadth of the cuboid given the volume is "&BA67&"." -> Q7. Find the breadth of the cuboid given the volume is 48cm³.
Z65: =BA63 -> 2cm
AN66: =ROUND(RAND()*(6-3)+3,0) -> 4 | AP66: cm | AZ66: =2*(AG67*AZ63)+2*(AG67*AZ68)+2*(AZ63*AZ68) -> 88
P67: Breadth = | W67: cm | AG67: =Y65+ROUND(RAND()*(8-5)+5,0) -> 6 | AH67: cm | AZ67: =AZ63*AG67*AN66 -> 48 | BA67: =CONCATENATE(AZ67,"cm",BB67) -> 48cm³ | BB67: ³
AZ68: =AZ67/(AZ63*AG67) -> 4
AZ70: =ROUND(RAND()*(25-2)+2,0)*2 -> 44
AZ71: =AZ70*1.2 -> 52.8
B72: ="Q8. Find the volume of the cylinder." -> Q8. Find the volume of the cylinder. | AB72: =AZ71 -> 52.8 | AD72: m
AA73: =AN74-ROUND(RAND()*(2-1)+1,0) -> -2
P75: Volume = | W75: m3 | AG75: =AZ70 -> 44 | AH75: m | AZ75: =ROUND(PI()*(AZ70/2)*(AZ70/2)*AZ71,1) -> 80284
S76: (1 decimal place)
AZ79: =BG78+ROUND(RAND()*(20-2)+2,0)*2 -> 36 | BA79: =CONCATENATE(AZ79,"m") -> 36m
B80: ="Q9. Find the volume of the triangular prism." -> Q9. Find the volume of the triangular prism. | AB80: =BA80 -> 38m | AZ80: =AZ79+2 -> 38 | BA80: =CONCATENATE(AZ80,"m") -> 38m
AZ81: =AZ80*2.5 -> 95 | BA81: 95m
AK82: =BA81 -> 95m
P83: Volume = | W83: m3 | AF83: =BA79 -> 36m | AZ83: =AZ79/2*AZ80*AZ81 -> 64980 | BA83: =CONCATENATE(AZ83,"m",BB83) -> 64980m³ | BB83: ³
